Cogmind - Beta 16.1 *** ADVENTURER MODE // 2026.03.12 @ 18:52:51 Player: Ms. V3-11A Result: Destroyed by G-73 Enforcer with Phase Gun Performance ------------- Evolutions (8) 4000 Regions Visited (18) 3600 Robots Destroyed (318) 1590 Value Destroyed (17112) 17112 Prototype IDs (58) 1160 Alien Tech Used (6) 1200 Bonus (1189) 1189 TOTAL SCORE: 29851 Bonus ------- High Alert Combat Kills 244 Follower Combat Kills 1131 Registered with UFD 300 Met Optimus in HQ 500 Met Zhirov 300 Used Core Reset Matrix 3000 Scanned by Researcher 500 Met Sigix 2000 Friendly Fire -6786 Cogmind --------- Core Integrity 0/1450 Matter 256/300 Energy 134/750 System Corruption 28% Temperature Cool (0) Movement Walking (120) Location -2/Testing Parts ------- > --- POWER (2) -------- Micro Antimatter Reactor > --- PROPULSION (5) --- Centrium Leg > --- UTILITY (13) ----- Advanced Heat Sink Small Battery Advanced Energy Well Improved Targeting Computer Improved Melee Analysis Suite Advanced Target Analyzer Advanced Target Analyzer Experimental Core Analyzer Advanced Remote Shield Advanced Component Analysis Suite > --- WEAPON (3) ------- (None) > --- INVENTORY (5) ---- Experimental Matter Compressor (90) Sigix Containment Pod Peak State ------------ > --- POWER ------------ Matter Drive > --- PROPULSION ------- Advanced Medium Treads Biometal Medium Treads Advanced Heavy Treads Flexi-carbon Leg > --- UTILITY ---------- Advanced Heat Sink Advanced Heat Sink Experimental Coolant Injector Huge Storage Unit Machine Analyzer Advanced Target Analyzer Advanced Target Analyzer Advanced Force Field Hacking Suite Experimental Hacking Suite Advanced System Shield Advanced Component Analysis Suite > --- WEAPON ----------- Linear Accelerator Linear Accelerator Enhanced Hardcell Cannon > --- INVENTORY -------- Light Antimatter Reactor Light Antimatter Reactor Micro Antimatter Reactor Micro Antimatter Reactor Advanced Cooling System High-capacity Storage Unit Energy Well Advanced Energy Well Advanced Energy Well Matter Compressor Experimental Matter Compressor Advanced Melee Analysis Suite Improved Power Shielding Improved Power Shielding Advanced Point Defense System Improved Hacking Suite Makeshift System Restoration Module High-powered Transdimensional Reconstructor Tesla Rifle Heavy Machine Gun Linear Accelerator Heavy Shock Bomb Launcher Power Maul Sigix Containment Pod [Rating: 161] Favorites ----------- Power Ion Engine Engine Ion Engine Power Core Neutrino Core Reactor Micro Antimatter Reactor Propulsion Light Treads Treads Light Treads Leg Flexi-carbon Leg Utility Machine Analyzer Device Advanced Heat Sink Storage High-capacity Storage Unit Processor Machine Analyzer Hackware Hacking Suite Protection Makeshift Light Armor Plating Weapon KE Penetrator Energy Gun Wave Gun Energy Cannon Powered Cannon Ballistic Gun KE Penetrator Ballistic Cannon Battle Cannon Launcher Long-range Missile Launcher Impact Weapon Power Maul Piercing Weapon Lance Build | -11 -10 -10 -7 -7 -5 -5 -5 -5 -4 -4 -4 -4 -4 -4 -3 -3 -2 -2 ------- Run | Yrd Mat Sub Rec Scr Fac Upp Upp Zhi Pro Fac Ext Cet Arc Hub Res Qua Res Tes Slots Evolved 16 | . . . . . 10 . . . . 2 . . . . 2 . 2 . Power 1 | . . . . . 1 . . . . . . . . . . . . . Propulsion 3 | . . . . . 2 . . . . . . . . . . . 1 . Utility 11 | . . . . . 6 . . . . 2 . . . . 2 . 1 . Weapon 1 | . . . . . 1 . . . . . . . . . . . . . Parts Attached 279 | 2 6 9 6 2 28 15 3 7 4 22 32 14 . 1 12 64 33 19 Power 34 | . . . 2 1 4 . 1 1 . 4 5 2 . . 2 7 3 2 Engine 5 | . . . 2 1 1 . . . . 1 . . . . . . . . Core 7 | . . . . . 3 . 1 . . 1 . . . . 1 1 . . Reactor 22 | . . . . . . . . 1 . 2 5 2 . . 1 6 3 2 Propulsion 56 | 2 1 2 2 . 7 3 . 1 4 8 6 2 . . . 10 5 3 Treads 29 | 2 1 2 2 . 1 . . . 4 2 3 2 . . . 6 3 1 Leg 27 | . . . . . 6 3 . 1 . 6 3 . . . . 4 2 2 Wheel . | . . . . . . . . . . . . . . . . . . . Hover . | . . . . . . . . . . . . . . . . . . . Flight . | . . . . . . . . . . . . . . . . . . . Utility 110 | . 4 1 1 . 9 6 2 4 . 3 15 7 . . 8 29 12 9 Device 42 | . . . . . 4 4 . 1 . 3 8 2 . . 2 10 5 3 Storage 10 | . 2 . . . 1 . . 1 . . . . . . . 4 . 2 Processor 19 | . . . . . 2 . . . . . 1 . . . 2 8 4 2 Hackware 12 | . . . . . 1 . . 1 . . . 2 . . 3 2 2 1 Protection 27 | . 2 1 1 . 1 2 2 1 . . 6 3 . . 1 5 1 1 Artifact . | . . . . . . . . . . . . . . . . . . . Weapon 79 | . 1 6 1 1 8 6 . 1 . 7 6 3 . 1 2 18 13 5 Energy Gun 23 | . . 1 . . . 2 . 1 . 2 3 1 . 1 . 7 3 2 Energy Cannon 5 | . . . . . 1 . . . . 1 . . . . . 1 . 2 Ballistic Gun 28 | . 1 3 1 . 7 1 . . . 2 3 2 . . 1 7 . . Ballistic Cannon 15 | . . 2 . 1 . 2 . . . 2 . . . . 1 1 5 1 Launcher 4 | . . . . . . 1 . . . . . . . . . 2 1 . Special Weapon . | . . . . . . . . . . . . . . . . . . . Impact Weapon 1 | . . . . . . . . . . . . . . . . . 1 . Slashing Weapon . | . . . . . . . . . . . . . . . . . . . Piercing Weapon 3 | . . . . . . . . . . . . . . . . . 3 . Special Melee Weapon . | . . . . . . . . . . . . . . . . . . . Unidentified Prototypes 25 | . . . . . . 1 . 5 . . 1 6 . . . 9 . 3 Corrupted Parts 5 | . . . . . . . . . . . . 2 . . . 2 1 . System Corruption 22 | . . . . . . . . . . . . 10 . . . 8 4 . Parts Lost 152 | . . 3 . . 14 11 4 . 4 17 8 1 . 4 15 31 28 12 Power 18 | . . . . . 2 1 1 . . 2 . . . 1 2 4 4 1 Propulsion 34 | . . 2 . . 6 2 1 . 1 3 3 . . . 2 5 6 3 Utility 52 | . . . . . 2 4 2 . 2 6 4 1 . 2 8 8 9 4 Weapon 48 | . . 1 . . 4 4 . . 1 6 1 . . 1 3 14 9 4 Highest Loss Streak 13 | . . 1 . . 3 7 2 . 4 6 3 1 . 4 9 8 13 7 To Critical Strikes 4 | . . 1 . . . . . . . 1 . . . . . 1 1 . Average Backups 17 | 6 7 14 18 17 17 21 17 21 23 21 23 21 22 22 20 16 15 2 Power . | 1 . . . 1 1 . . . . 1 2 2 2 2 . . 2 . Propulsion 1 | 4 1 2 2 2 . 2 3 4 3 2 1 1 2 2 3 1 . . Utility 8 | . 4 8 10 8 8 11 8 10 12 8 10 10 12 12 8 7 9 1 Weapon 5 | 1 1 3 5 5 6 7 5 5 5 6 7 5 5 5 6 4 2 1 Tool/Special . | . . . . . . . . . . . . . . . . . . . Unused Backups 55 | 10 1 2 2 8 3 . . . . 2 8 5 . 1 . 3 9 1 Power 6 | 2 . . . . . . . . . 2 . 1 . . . . 1 . Propulsion 8 | 4 . . . . . . . . . . 1 . . . . 3 . . Utility 20 | 1 1 . 2 4 . . . . . . 2 1 . 1 . . 7 1 Weapon 20 | 3 . 2 . 4 3 . . . . . 5 2 . . . . 1 . Tool/Special 1 | . . . . . . . . . . . . 1 . . . . . . Average Slot Usage (%) 88 | . 97 99 100 100 77 83 91 86 85 81 88 86 89 87 77 84 62 54 Engine 6 | . 14 14 14 14 3 2 . . . 3 . . . . . . . . Core 1 | . . . . . 6 5 8 5 5 . 2 . . . 2 . . . Reactor 2 | . . . . . . . . 1 5 5 7 10 10 9 3 7 5 2 Treads 15 | . 27 27 28 28 12 . . . 9 14 5 10 10 10 7 7 3 1 Leg 4 | . . . . . 5 22 22 19 12 6 8 . . . . 1 4 5 Device 6 | . . . . . 5 7 6 5 5 15 18 15 10 9 10 9 12 7 Storage 8 | . 14 14 14 14 5 5 5 5 5 5 5 5 5 5 4 4 2 4 Processor 7 | . . . . . 6 11 11 11 11 10 13 13 10 10 12 19 10 15 Hackware 3 | . . . . . 4 5 5 5 2 . . 2 10 10 18 13 9 3 Protection 9 | . 11 14 14 14 7 3 9 11 7 3 9 11 15 14 5 4 1 1 Energy Gun 3 | . . 4 . . . 3 5 6 10 7 8 . . 4 4 4 2 1 Ballistic Gun 9 | . 28 15 14 14 12 5 . . 2 . 5 13 15 9 1 4 . . Ballistic Cannon 5 | . . 7 14 14 . 3 11 8 2 5 1 . . . 3 1 6 2 Peak Build Rating 161 | 6 8 17 25 31 90 96 78 81 80 95 114 143 143 144 149 160 161 146 Average Rating 65 | 5 7 14 23 28 67 73 72 71 72 80 106 130 142 141 119 137 108 96 On Entrance 69 | 6 6 8 17 24 31 90 62 65 80 69 78 113 143 142 118 99 114 61 Avg Prop Armor Cover (%) 13 | . . . . . 6 . . . . . 3 . . . . 14 20 8 Naked Turns 3 | . . . . . . . . . . . . . . . . . 3 . Heaviest Build 165 | 14 52 57 60 63 145 139 127 134 126 133 165 161 154 154 156 136 153 61 Greatest Support 160 | 40 40 40 48 48 88 75 70 65 104 118 140 160 160 160 160 140 135 60 Greatest Overweight (x) 41 | . 1 1 1 1 36 2 2 2 2 3 3 1 . . 1 3 41 2 Average Overweight (x) . | . . 1 1 1 1 1 1 1 1 1 1 . . . . . . . Largest Inventory Capacity 25 | 8 20 20 20 20 25 25 25 25 25 25 25 25 25 25 25 25 25 5 Average Capacity 21 | 8 18 20 20 20 22 25 25 25 25 25 25 25 25 25 25 20 19 5 Most Carried 25 | 6 10 20 20 20 23 25 20 25 25 24 25 25 25 25 24 23 25 5 Average Carried 18 | 4 7 15 19 18 18 21 17 21 23 21 23 23 24 24 21 19 17 4 Final Capacity 25 | 8 20 20 20 20 25 25 25 25 25 25 25 25 25 25 25 25 5 5 Final Carried 25 | . 10 20 20 20 21 19 20 24 23 20 22 25 25 24 20 23 5 3 Class Distribution -------------------- 33% | Mutant 29% | Scavenger-Tank 11% | Scavenger-Mutant 10% | Hacker-Tank 5% | Scavenger-Skirmisher 4% | Hacker-Mutant Dominant Class ---------------- Mutant | -10/Materials Mutant | -10/Subcaves Scavenger-Mutant | -7/Recycling Mutant | -7/Scraptown Hacker-Tank | -5/Factory Scavenger-Skirmisher | -5/Upper Caves Scavenger-Tank | -5/Upper Caves Scavenger-Tank | -5/Zhirov Scavenger-Tank | -4/Proximity Caves Scavenger-Skirmisher | -4/Factory Scavenger-Tank | -4/Extension Scavenger-Tank | -4/Cetus Scavenger-Tank | -4/Archives Scavenger-Tank | -4/Hub_04(d) Scavenger-Mutant | -3/Research Hacker-Tank | -3/Quarantine Hacker-Mutant | -2/Research Hacker-Mutant | -2/Testing Resources | -11 -10 -10 -7 -7 -5 -5 -5 -5 -4 -4 -4 -4 -4 -4 -3 -3 -2 -2 ----------- Run | Yrd Mat Sub Rec Scr Fac Upp Upp Zhi Pro Fac Ext Cet Arc Hub Res Qua Res Tes Matter Collected 10721 | 163 164 497 167 131 1369 566 185 . 548 789 896 434 290 405 409 1897 1079 732 Remotely . | . . . . . . . . . . . . . . . . . . . Salvage Created 17959 | . 331 507 248 . 3620 1360 124 213 265 1273 2400 250 540 1182 522 3072 1373 679 Parts 828 | . 28 27 9 . 164 52 2 3 5 70 87 23 35 56 23 159 54 31 Haulers Intercepted 4 | . 2 . . . . . . . . . . . . . . 2 . . Recyclers Shooed 7 | . . . 1 . 2 . . . . 2 . . . 1 . . 1 . Parts Field Recycled . | . . . . . . . . . . . . . . . . . . . Retrieved Matter . | . . . . . . . . . . . . . . . . . . . Parts Self-Destructed 74 | . . 10 . . . 47 5 2 10 . . . . . . . . . Prevented . | . . . . . . . . . . . . . . . . . . . Parts Restored . | . . . . . . . . . . . . . . . . . . . Kills | -11 -10 -10 -7 -7 -5 -5 -5 -5 -4 -4 -4 -4 -4 -4 -3 -3 -2 -2 ------- Run | Yrd Mat Sub Rec Scr Fac Upp Upp Zhi Pro Fac Ext Cet Arc Hub Res Qua Res Tes Combat Hostiles Destroyed 260 | . 8 13 1 . 47 22 3 . 8 22 23 2 4 12 9 51 27 8 Melee 2 | . . . . . . . . . . . . . . . . . . 2 Guns 138 | . 8 8 1 . 31 15 2 . . 6 22 2 4 9 3 26 1 . Cannons 72 | . . 5 . . 14 3 1 . 1 13 1 . . . 1 9 19 5 AOE 36 | . . . . . . 3 . . 7 2 . . . 3 5 12 4 . Classes Destroyed 25 | . 5 4 1 . 6 1 . . 1 . 2 . . . 1 3 . 1 Worker 9 | . . . . . 2 . . . . 1 . . . . . 3 3 . Builder 6 | . 1 . . . 1 . . . . . . . . 1 . 2 1 . Hauler 4 | . 2 . . . . . . . . . . . . . . 2 . . Recycler 19 | . . . 3 . 8 . . . . 1 3 . . 2 . 1 1 . Mechanic 5 | . 1 . . . 2 . . . . . . . . . . 2 . . Operator 5 | . . . . . 1 . . . . . . . 3 . . 1 . . Turret 2 | . . 2 . . . . . . . . . . . . . . . . Watcher 4 | . . . . . . . . . . . . . . . 2 1 . 1 Swarmer 47 | . 6 4 . . 13 5 2 . . 7 . . . 2 . 3 5 . Cutter 4 | . . . . . 4 . . . . . . . . . . . . . Grunt 91 | . 2 . . . 9 11 . . . 4 15 . . 8 3 31 4 4 Brawler 4 | . . . . . . 3 . . . . . . . . . . 1 . Protector 2 | . . . . . . . . . 1 . . . . . . 1 . . Researcher 3 | . . . . . . . . . . . . . . . . 2 . 1 Sentry 28 | . . 1 1 . 4 2 1 . . 3 5 . 4 2 2 . 3 . Specialist 6 | . . . . . 6 . . . . . . . . . . . . . Hunter 22 | . . . . . 2 1 . . 5 2 . . . . 4 3 5 . Programmer 37 | . . . . . 9 . . . 1 6 . . . . . 8 9 4 Q-Series 1 | . . . . . . . . . . . . . . . . 1 . . Behemoth 1 | . . . . . . . . . . . 1 . . . . . . . Cetus Guard 2 | . . . . . . . . . . . . 2 . . . . . . Lightning 3 | . . . . . . . . . . . . . . . . 3 . . Alpha 7 1 | . . . . . . . . . . . . . . . . 1 . . Cobbler 1 | . . 1 . . . . . . . . . . . . . . . . Subdweller 8 | . . 8 . . . . . . . . . . . . . . . . Assembled 3 | . . . . . . . . . . . . . . . . . . 3 Thug 1 | . . . . . . . . . . . 1 . . . . . . . Savage 1 | . . . . . . . . . 1 . . . . . . . . . Butcher 1 | . . . . . . . . . . . 1 . . . . . . . Best Kill Streak 18 | . 5 6 4 . 9 5 2 . 5 8 3 2 5 8 7 18 7 4 Combat Bots Only 8 | . 3 4 1 . 5 5 2 . 5 7 3 2 2 8 5 8 7 3 Max Kills in Single Turn 18 | . 1 1 1 . 2 2 1 . 2 2 2 1 1 3 2 18 4 1 Gunslinging 1 | . . . . . 1 1 . . . . . . . . . . . . Exploded 8 | . . . . . . 2 . . 2 2 . . . 3 2 8 2 . Melee 1 | . . . . . . . . . . . . . . . . . . 1 Uniques/NPCs Destroyed 1 | . . . . . . . . . . . . 1 . . . . . . A7 (-4/Cetus) Combat | -11 -10 -10 -7 -7 -5 -5 -5 -5 -4 -4 -4 -4 -4 -4 -3 -3 -2 -2 -------- Run | Yrd Mat Sub Rec Scr Fac Upp Upp Zhi Pro Fac Ext Cet Arc Hub Res Qua Res Tes Hostile Shots Fired 2841 | . 45 125 9 . 335 140 63 . 58 192 203 20 29 145 247 606 415 209 Missed 843 | . 16 44 5 . 96 41 17 . 21 52 50 7 9 42 80 179 122 62 Hits 1998 | . 29 81 4 . 239 99 46 . 37 140 153 13 20 103 167 427 293 147 Melee 28 | . . . . . 21 . . . . . . . . . . 2 5 . Projectile 1970 | . 29 81 4 . 218 99 46 . 37 140 153 13 20 103 167 425 288 147 AOE 9 | . . 6 . . 1 . . . . 1 . . . . . 1 . . Critical Strikes 117 | . . 2 . . 24 3 . . . 10 10 5 . 2 7 27 15 12 Actively Blocked 6 | . . . . . . . . . . 2 . . . 1 . 1 . 2 Part Disruptions 10 | . . . . . 1 . . . . . . . . . . 5 3 1 Actively Blocked 1 | . . . . . . . . . . . . . . . . . 1 . Damage Taken 33836 | . 239 1039 20 . 3845 1489 729 . 533 2248 2715 412 399 1666 2587 8284 5324 2307 Core 3735 | . 43 108 . . 428 139 108 . 23 296 173 22 14 71 218 716 971 405 Absorbed by Shields 640 | . . . . . . . . . . . 78 122 . . . 44 45 351 Reduced by Siege Mode 20 | . . . . . . . . . . . . . . . . . 20 . Redirected to Shielding 628 | . . . . . . . . . . 157 . . 6 26 9 218 105 107 Ignored by Resistances 9436 | . 72 301 7 . 1065 404 208 . 150 627 792 72 110 482 735 2224 1457 730 Regen/Repaired (Parts) 895 | . . . . 639 . . . . . . . 69 77 80 30 . . . Core Remaining (%) 48 | 100 . . . 39 . . . . 30 . . . . 49 . 25 . . Volleys Fired 850 | . 22 109 6 . 136 48 15 13 13 49 78 24 16 35 26 160 72 28 Largest 3 | . 2 2 2 . 3 3 3 1 3 3 3 3 3 3 3 3 3 3 Hottest 315 | . 40 95 63 . 99 179 179 85 192 192 204 105 105 150 148 315 177 270 Shots Fired 1937 | . 44 198 12 . 288 121 31 13 19 135 231 71 47 91 49 394 148 45 Gun 1417 | . 44 150 6 . 219 105 15 13 6 78 212 71 47 90 33 281 31 16 Cannon 490 | . . 48 6 . 69 13 16 . 3 57 19 . . . 10 105 115 29 Launcher 30 | . . . . . . 3 . . 10 . . . . 1 6 8 2 . Special . | . . . . . . . . . . . . . . . . . . . Kinetic 1236 | . 44 170 12 . 220 78 16 . 3 74 96 70 47 62 23 196 115 10 Thermal 559 | . . 28 . . 68 40 15 13 3 42 135 1 . 28 20 138 9 19 Explosive 23 | . . . . . . 3 . . 10 . . . . 1 6 3 . . Electromagnetic 119 | . . . . . . . . . 3 19 . . . . . 57 24 16 Robot Hit Streak 42 | . 16 40 11 . 23 16 10 22 24 20 28 34 42 29 20 31 42 18 Robot Miss Streak 5 | . 3 2 1 . 3 2 2 . 1 3 2 1 1 1 1 5 5 1 Penetration Max 2 | . . . . . 1 1 . . . 1 2 . . 2 . 2 . . Secondary Targets 29 | . 2 1 . . 10 7 . . . . 2 . . 3 1 3 . . Max Gunslinging Chain 2 | . 1 1 . . 2 1 . . . . 1 . . 1 1 1 . . Shots Hit Robots 1436 | . 32 119 9 . 200 100 25 13 17 97 188 62 38 62 35 275 119 45 Core Hits 664 | . 17 37 10 . 90 44 8 7 21 42 72 19 19 40 34 142 44 18 Critical Kills 33 | . . . . . 6 1 . . . 5 10 1 1 3 1 4 . 1 Critical Parts Destroyed 32 | . . . . . 5 1 . . . 2 7 1 1 2 . 11 2 . Critical Strikes 138 | . . 2 1 . 11 3 7 3 3 17 21 3 2 6 1 33 20 5 Burn 27 | . . 2 . . . . 4 3 1 6 3 . . . . 8 . . Meltdown 5 | . . . . . 3 1 . . . . . . . . . . . 1 Destroy 62 | . . . . . 8 2 . . . 7 18 3 2 6 1 15 . . Blast 31 | . . . 1 . . . 3 . 2 3 . . . . . 5 16 1 Corrupt 9 | . . . . . . . . . . 1 . . . . . 5 1 2 Smash 3 | . . . . . . . . . . . . . . . . . 3 . Impale 1 | . . . . . . . . . . . . . . . . . . 1 Melee Attacks 40 | . . . . . . . . . . . . . . . . . 26 14 Impact 14 | . . . . . . . . . . . . . . . . . 14 . Slashing . | . . . . . . . . . . . . . . . . . . . Piercing 26 | . . . . . . . . . . . . . . . . . 12 14 Sneak Attacks 3 | . . . . . . . . . . . . . . . . . . 3 Combat Hostiles . | . . . . . . . . . . . . . . . . . . . Follow-up Attacks . | . . . . . . . . . . . . . . . . . . . Damage Inflicted 63602 | . 440 2165 221 . 6676 3115 707 188 1767 2673 4984 1626 957 2395 2459 25100 5567 2562 Guns 26380 | . 418 1441 136 . 4055 2077 237 188 92 1099 4753 1626 957 2013 642 5834 502 310 Cannons 13966 | . . 724 72 . 2620 433 470 . 112 1410 227 . . . 185 2387 3619 1707 Explosions 22122 | . . . . . . 605 . . 1563 164 . . . 382 1619 16861 928 . Melee 1033 | . . . . . . . . . . . . . . . . . 510 523 Ramming 101 | . 22 . 13 . 1 . . . . . 4 . . . 13 18 8 22 Kinetic 25463 | . 418 1841 208 . 4083 1568 470 . 112 1394 1950 1626 957 1437 456 4373 3619 951 Thermal 29791 | . . 324 . . 2592 942 237 188 137 852 3030 . . 576 371 18859 927 756 Explosive 4629 | . . . . . . 605 . . 1480 164 . . . 382 1619 379 . . Electromagnetic 2585 | . . . . . . . . . 38 263 . . . . . 1471 503 310 Impact 510 | . . . . . . . . . . . . . . . . . 510 . Slashing . | . . . . . . . . . . . . . . . . . . . Piercing 523 | . . . . . . . . . . . . . . . . . . 523 Highest Corruption 28 | . . . . . 6 3 1 1 2 4 4 16 16 16 . 19 15 28 Average Corruption 5 | . . . . . 2 1 1 1 1 2 4 13 16 16 . 10 8 21 Corruption Purged 5 | . . . . . 3 2 . . . . . . . . . . . . Corruption Blocked 20 | . . . . . . . . . . . . . . . . 20 . . Effects 262 | . . . . . 25 9 . 4 10 3 77 19 8 31 . 13 36 27 Message Errors 52 | . . . . . 6 1 . 2 3 . 17 6 1 4 . 4 4 4 Matter Fused 53 | . . . . . 7 1 . 2 3 . 12 4 2 8 . 4 6 4 Heat Flow Errors 39 | . . . . . 2 1 . . 2 . 22 1 . 3 . 1 5 2 Energy Discharges 30 | . . . . . 3 1 . . . 1 9 3 . 3 . 3 3 4 Parts Rejected 4 | . . . . . . . . . . . 1 . 1 . . . 1 1 Parts Fused 5 | . . . . . . . . . 1 . . . 1 . . . 2 1 Data Loss (minor) 31 | . . . . . 4 1 . . . 1 5 2 1 3 . 1 9 4 Data Loss (major) 15 | . . . . . 1 2 . . . . 6 1 . 1 . . 2 2 Misfires 8 | . . . . . . . . . . 1 2 1 . 1 . . 1 2 Alerts 7 | . . . . . 1 2 . . 1 . 1 . . 2 . . . . Misdirections 7 | . . . . . . . . . . . . . 1 1 . . 2 3 Weapon Failures 11 | . . . . . 1 . . . . . 2 1 1 5 . . 1 . Overload Shots 15 | . . . . . . . . . . . . . . . . 15 . . Overflow Damage 2265 | . . 14 . . 166 77 . . 47 14 . . . . 40 1322 308 277 Projectiles 616 | . . 14 . . 166 17 . . . 14 . . . . . 28 194 183 Explosions 1488 | . . . . . . 60 . . 47 . . . . . 40 1294 47 . Melee 161 | . . . . . . . . . . . . . . . . . 67 94 Knockbacks 61 | . . 7 . . . 2 . . . 8 3 . . . 1 12 23 5 Impact . | . . . . . . . . . . . . . . . . . . . Kinetic 60 | . . 7 . . . 2 . . . 8 3 . . . . 12 23 5 Secondary 1 | . . . . . . . . . . . . . . . 1 . . . Self-Inflicted Damage 975 | . . . . . . . . . 46 80 . . . 32 109 704 4 . Shots 9 | . . . . . . . . . 1 1 . . . 1 5 1 . . Rammed 10 | . 3 . 2 . 1 . . . . . 1 . . . 1 1 1 . Targets Rammed 16 | . 3 . 2 . 1 . . . . . 1 . . . 1 1 1 6 Kicked 6 | . . . . . . . . . . . . . . . . . . 6 Crushed . | . . . . . . . . . . . . . . . . . . . Highest Temperature 706 | . 13 4 69 . 257 319 132 52 208 619 706 . . 240 21 304 171 149 Average Temperature 86 | . 6 4 27 . 50 109 58 26 76 169 109 . . 111 13 100 75 44 Received Heat Transfer 6089 | . 105 156 6 . 831 729 42 . . 319 1366 . 45 403 364 847 378 498 Effects 28 | . . . . . . 2 . . . 13 13 . . . . . . . Shutdowns 7 | . . . . . . . . . . 4 3 . . . . . . . Energy Bleed 2 | . . . . . . 2 . . . . . . . . . . . . Interference 5 | . . . . . . . . . . 2 3 . . . . . . . Matter Decay 4 | . . . . . . . . . . 3 1 . . . . . . . Short Circuit 2 | . . . . . . . . . . 1 1 . . . . . . . Damage (minor) 3 | . . . . . . . . . . 1 2 . . . . . . . Damage (major) 5 | . . . . . . . . . . 2 3 . . . . . . . Siege Activations 1 | . . . . . . . . . . . . . . . . . 1 . Total Turns 16 | . . . . . . . . . . . . . . . . . 16 . Longest Duration 16 | . . . . . . . . . . . . . . . . . 16 . Martial Activations . | . . . . . . . . . . . . . . . . . . . Shielding Activations . | . . . . . . . . . . . . . . . . . . . Robots Disrupted . | . . . . . . . . . . . . . . . . . . . Combat Hostiles . | . . . . . . . . . . . . . . . . . . . Robots Corrupted 7 | . . . . . . . . . . . . . . . . 4 3 . Combat Hostiles 7 | . . . . . . . . . . . . . . . . 4 3 . Parts Fried 10 | . . . . . . . . . . 1 . . . . . 7 1 1 Impact Corruptions 2 | . . . . . . . . . . . . . . . . . 2 . Robots Melted 6 | . . . . . 3 1 . . . 1 . . . . . . . 1 Combat Hostiles 5 | . . . . . 2 1 . . . 1 . . . . . . . 1 Parts Melted 53 | . . 2 . . 11 5 . 3 1 5 19 . . . 1 . . 6 Heat Transferred 17707 | . . 962 . . . 938 1050 950 300 2005 4551 . . 777 518 4553 548 555 Parts Sabotaged . | . . . . . . . . . . . . . . . . . . . Parts Stolen . | . . . . . . . . . . . . . . . . . . . Parts Stripped . | . . . . . . . . . . . . . . . . . . . Power Chain Reactions 3 | . . . . . . . . . 1 . . . . . . . 2 . Alert | -11 -10 -10 -7 -7 -5 -5 -5 -5 -4 -4 -4 -4 -4 -4 -3 -3 -2 -2 ------- Run | Yrd Mat Sub Rec Scr Fac Upp Upp Zhi Pro Fac Ext Cet Arc Hub Res Qua Res Tes Maximum Alert Level 3 | . . . . . 2 . . . . 1 . . . 1 . 3 2 1 Low Security (%) 86 | 100 100 . 100 . 78 . . . . 99 100 100 100 96 100 86 11 90 Level 1 10 | . . . . . 17 . . . . . . . . 3 . . 87 9 Level 2 . | . . . . . 4 . . . . . . . . . . . . . Level 3 1 | . . . . . . . . . . . . . . . . 13 . . Level 4 . | . . . . . . . . . . . . . . . . . . . Level 5 . | . . . . . . . . . . . . . . . . . . . High Security . | . . . . . . . . . . . . . . . . . . . Max Security . | . . . . . . . . . . . . . . . . . . . Peak Influence 899 | . 75 . 60 . 442 . . . . 203 95 115 104 287 152 899 406 225 Initial 347 | . . . . . . . . . . . 26 . . 18 130 69 347 42 Average 85 | . 8 . 5 . 131 . . . . 51 15 23 59 50 46 183 286 38 Influence Increases 9405 | . 225 200 222 . 1378 525 140 10 145 649 1053 129 134 513 314 2189 1040 539 Destroy 0b10 Robot/C 5520 | . 160 140 20 . 940 440 100 . 120 440 740 80 80 240 180 1040 580 220 Destroy 0b10 Robot/NC 290 | . 20 . 15 . 70 . . 10 5 10 20 5 15 15 10 65 25 5 Destroy Leader 858 | . 34 . . . 170 40 20 . 20 90 92 . . 40 54 146 120 32 Allied During Kill 92 | . . . . . . . 5 . . . 69 4 . . . . 9 5 Successful Hack 151 | . 11 . 36 . . . . . . . 52 . . 4 . 19 6 23 Select Force Hacks 150 | . . . 150 . . . . . . . . . . . . . . . Disable Machine 342 | . . . . . 36 . . . . 9 9 . 27 54 . 126 36 45 Anti-Garrison Action 200 | . . . . . . . . . . . . . . . . . . 200 Destroy Structure 1142 | . . . 1 . 72 . . . . 100 26 40 12 40 70 658 114 9 Partial Spotted 60 | . . . . . 15 . . . . . . . . 45 . . . . Lose Combat Pursuer 600 | . . 60 . . 75 45 15 . . . 45 . . 75 . 135 150 . Influence Decreases 9251 | . 225 200 222 . 1030 873 140 10 145 587 1115 129 70 290 459 1622 1662 472 Entered New Map 875 | . . . . . . 156 . . . . 36 . . 46 157 73 362 45 Time Decay 6507 | . 225 190 222 . 890 607 120 10 115 447 849 119 70 194 180 1239 780 250 Lost Part 1361 | . . 10 . . 140 110 . . 30 140 49 10 . 40 122 310 280 120 Lost Ally 508 | . . . . . . . 20 . . . 181 . . 10 . . 240 57 Squads Dispatched 64 | . . . . . 15 . . . . 10 4 . . 3 5 15 7 5 Investigation 13 | . . . . . 2 . . . . 2 2 . . 1 2 2 1 1 Extermination 21 | . . . . . 4 . . . . 3 . . . 1 1 6 5 1 Reinforcement 24 | . . . . . 7 . . . . 2 2 . . . 2 7 1 3 Assault . | . . . . . . . . . . . . . . . . . . . Garrison 6 | . . . . . 2 . . . . 3 . . . 1 . . . . Intercept . | . . . . . . . . . . . . . . . . . . . Searches Triggered . | . . . . . . . . . . . . . . . . . . . Construction Impeded 3 | . . . . . 1 . . . . . . . . . . 2 . . Haulers Reinforced 6 | . . . . . 2 . . . . 1 . . . . . 2 . 1 Active Scanning Responses . | . . . . . . . . . . . . . . . . . . . Cargo Convoy Interrupts . | . . . . . . . . . . . . . . . . . . . Stealth | -11 -10 -10 -7 -7 -5 -5 -5 -5 -4 -4 -4 -4 -4 -4 -3 -3 -2 -2 --------- Run | Yrd Mat Sub Rec Scr Fac Upp Upp Zhi Pro Fac Ext Cet Arc Hub Res Qua Res Tes Distress Signals 25 | . . . . . 7 . . . 3 3 4 1 . 1 1 2 1 2 Communications Jammed . | . . . . . . . . . . . . . . . . . . . Distress Signals . | . . . . . . . . . . . . . . . . . . . Times Spotted 430 | . 17 16 1 . 74 25 7 . 9 28 47 5 6 24 13 83 49 26 Peak Tracking Total 12 | . 5 3 1 . 7 7 3 . 6 5 5 5 2 12 10 8 7 10 Tactical Retreats 28 | . . 2 . . 5 3 1 . 1 . 2 . . 2 . 7 5 . Traps | -11 -10 -10 -7 -7 -5 -5 -5 -5 -4 -4 -4 -4 -4 -4 -3 -3 -2 -2 ------- Run | Yrd Mat Sub Rec Scr Fac Upp Upp Zhi Pro Fac Ext Cet Arc Hub Res Qua Res Tes Traps Triggered 15 | . 2 . . . . . . . . 1 1 . . 2 . 2 4 3 Indirectly . | . . . . . . . . . . . . . . . . . . . Trap Hack Attempts . | . . . . . . . . . . . . . . . . . . . Triggered . | . . . . . . . . . . . . . . . . . . . Disarmed . | . . . . . . . . . . . . . . . . . . . Reprogrammed . | . . . . . . . . . . . . . . . . . . . Reused . | . . . . . . . . . . . . . . . . . . . Traps Extracted . | . . . . . . . . . . . . . . . . . . . Installed 1 | . . 1 . . . . . . . . . . . . . . . . Triggered . | . . . . . . . . . . . . . . . . . . . Machines | -11 -10 -10 -7 -7 -5 -5 -5 -5 -4 -4 -4 -4 -4 -4 -3 -3 -2 -2 ---------- Run | Yrd Mat Sub Rec Scr Fac Upp Upp Zhi Pro Fac Ext Cet Arc Hub Res Qua Res Tes Machines Disabled 44 | . . 3 . . 4 . . . . 1 3 . 3 6 . 15 4 5 Max in Single Turn 6 | . . 1 . . 1 . . . . 1 1 . 1 1 . 6 2 1 Garrison Access 4 | . . . . . 1 . . . . . . . . 1 1 . . 1 Machines Repaired . | . . . . . . . . . . . . . . . . . . . Machines Dismantled . | . . . . . . . . . . . . . . . . . . . Machines Sabotaged . | . . . . . . . . . . . . . . . . . . . Overloaded Fab Kills . | . . . . . . . . . . . . . . . . . . . Hacking | -11 -10 -10 -7 -7 -5 -5 -5 -5 -4 -4 -4 -4 -4 -4 -3 -3 -2 -2 --------- Run | Yrd Mat Sub Rec Scr Fac Upp Upp Zhi Pro Fac Ext Cet Arc Hub Res Qua Res Tes Machines Accessed 74 | . 7 2 13 5 3 . . 3 . 2 11 . . 6 5 9 3 5 Terminals 44 | . 7 . 6 . . . . . . 1 8 . . 5 2 9 2 4 Fabricators . | . . . . . . . . . . . . . . . . . . . Repair Stations 1 | . . . . . . . . . . . 1 . . . . . . . Recycling Units 12 | . . . 5 . 2 . . . . 1 2 . . . 2 . . . Scanalyzers 1 | . . . . . . . . . . . . . . . . . 1 . Garrison Access 4 | . . . . . 1 . . . . . . . . 1 1 . . 1 Total Hacks 165 | . 15 6 24 13 4 . . 10 . 2 22 . . 13 8 24 15 9 Successful 122 | . 11 6 17 13 3 . . 10 . 2 16 . . 8 5 12 13 6 Failed 42 | . 4 . 7 . 1 . . . . . 6 . . 5 3 12 1 3 Catastrophic 8 | . . . 3 . . . . . . . 1 . . 1 1 1 . 1 Database Lockouts 1 | . . . . . . . . . . . . . . . . . 1 . Manual 83 | . 14 . 15 . 2 . . . . 1 15 . . 6 3 13 6 8 Terminals 99 | . 15 . 12 . . . . . . 1 17 . . 12 4 24 6 8 Fabricators . | . . . . . . . . . . . . . . . . . . . Repair Stations 2 | . . . . . . . . . . . 2 . . . . . . . Recycling Units 14 | . . . 6 . 2 . . . . 1 3 . . . 2 . . . Scanalyzers 9 | . . . . . . . . . . . . . . . . . 9 . Garrison Access 6 | . . . . . 2 . . . . . . . . 1 2 . . 1 Terminal Hacks 63 | . 3 6 6 13 . . . 10 . 1 6 . . 1 1 12 2 2 Record 25 | . . 5 6 3 . . . 6 . . 1 . . 1 . 3 . . Robot Analysis 14 | . 1 . . 9 . . . 4 . . . . . . . . . . Prototype ID Bank 3 | . 1 . . . . . . . . . . . . . . 2 . . Open Door 8 | . . . . . . . . . . 1 4 . . . 1 2 . . Branch Access Points 1 | . . . . . . . . . . . . . . . . . 1 . Machine Index 1 | . . . . . . . . . . . . . . . . 1 . . Terminal Index 3 | . . . . . . . . . . . 1 . . . . . 1 1 Recall Extermination 1 | . . . . . . . . . . . . . . . . 1 . . Zone Layout 5 | . 1 . . . . . . . . . . . . . . 3 . 1 Proto ID Catalog 2 | . . 1 . 1 . . . . . . . . . . . . . . Fabricator Hacks . | . . . . . . . . . . . . . . . . . . . Repair Station Hacks 1 | . . . . . . . . . . . 1 . . . . . . . Scan Component 1 | . . . . . . . . . . . 1 . . . . . . . Recycling Unit Hacks 1 | . . . 1 . . . . . . . . . . . . . . . Retrieve Components 1 | . . . 1 . . . . . . . . . . . . . . . Scanalyzer 8 | . . . . . . . . . . . . . . . . . 8 . Retrieve Study 8 | . . . . . . . . . . . . . . . . . 8 . Garrison Access Hacks 3 | . . . . . 1 . . . . . . . . 1 1 . . . Seal Access 3 | . . . . . 1 . . . . . . . . 1 1 . . . Unauthorized Hacks 46 | . 8 . 10 . 2 . . . . 1 9 . . 6 3 . 3 4 Terminals 33 | . 8 . 5 . . . . . . . 7 . . 6 1 . 3 3 Assimilate 1 | . . . . . . . . . . . . . . 1 . . . . Botnet 10 | . 3 . . . . . . . . . 3 . . . 1 . 2 1 Skim 22 | . 5 . 5 . . . . . . . 4 . . 5 . . 1 2 Fabricators . | . . . . . . . . . . . . . . . . . . . Repair Stations . | . . . . . . . . . . . . . . . . . . . Recycling Units 12 | . . . 5 . 2 . . . . 1 2 . . . 2 . . . Tunnel 5 | . . . 5 . . . . . . . . . . . . . . . Fedlink 7 | . . . . . 2 . . . . 1 2 . . . 2 . . . Scanalyzers . | . . . . . . . . . . . . . . . . . . . Garrison Access 1 | . . . . . . . . . . . . . . . . . . 1 Jam 1 | . . . . . . . . . . . . . . . . . . 1 Data Cores Recovered 1 | . . . . . 1 . . . . . . . . . . . . . Used . | . . . . . . . . . . . . . . . . . . . Hacking Detections 31 | . 4 . 6 . . . . . . . 6 . . 3 2 5 3 2 Full Trace Events 1 | . . . . . . . . . . . . . . . . 1 . . Feedback Events . | . . . . . . . . . . . . . . . . . . . Feedback Blocked . | . . . . . . . . . . . . . . . . . . . Robot Schematics Acquired 3 | . . . . . . . . . . . . . . . . 2 . 1 Robots Built . | . . . . . . . . . . . . . . . . . . . Authchips . | . . . . . . . . . . . . . . . . . . . Time . | . . . . . . . . . . . . . . . . . . . Total Robot Build Rating . | . . . . . . . . . . . . . . . . . . . Part Schematics Acquired 6 | . . . . . . . . . . . . . . . . 5 . 1 Parts Built . | . . . . . . . . . . . . . . . . . . . Authchips . | . . . . . . . . . . . . . . . . . . . Time . | . . . . . . . . . . . . . . . . . . . Total Part Build Rating . | . . . . . . . . . . . . . . . . . . . Part Studies Acquired 8 | . . . . . . . . . . . . . . . . . 8 . Parts Repaired . | . . . . . . . . . . . . . . . . . . . Time . | . . . . . . . . . . . . . . . . . . . Parts Recycled . | . . . . . . . . . . . . . . . . . . . Recycled Matter . | . . . . . . . . . . . . . . . . . . . Retrieved Matter . | . . . . . . . . . . . . . . . . . . . Retrieved Components . | . . . . . . . . . . . . . . . . . . . Parts Scanalyzed . | . . . . . . . . . . . . . . . . . . . Part Schematics Acquired . | . . . . . . . . . . . . . . . . . . . Parts Damaged . | . . . . . . . . . . . . . . . . . . . Bothacking | -11 -10 -10 -7 -7 -5 -5 -5 -5 -4 -4 -4 -4 -4 -4 -3 -3 -2 -2 ------------ Run | Yrd Mat Sub Rec Scr Fac Upp Upp Zhi Pro Fac Ext Cet Arc Hub Res Qua Res Tes Used RIF Installer . | . . . . . . . . . . . . . . . . . . . Robots Hacked . | . . . . . . . . . . . . . . . . . . . Non-combat . | . . . . . . . . . . . . . . . . . . . Combat . | . . . . . . . . . . . . . . . . . . . Robot Hacks Applied . | . . . . . . . . . . . . . . . . . . . Relay Couplers Released . | . . . . . . . . . . . . . . . . . . . Fabnet Peak Effective % . | . . . . . . . . . . . . . . . . . . . Robots Rewired 13 | . . . . . . 2 . . . . 11 . . . . . . . Allies Hacked . | . . . . . . . . . . . . . . . . . . . Hacks Repelled . | . . . . . . . . . . . . . . . . . . . Allies | -11 -10 -10 -7 -7 -5 -5 -5 -5 -4 -4 -4 -4 -4 -4 -3 -3 -2 -2 -------- Run | Yrd Mat Sub Rec Scr Fac Upp Upp Zhi Pro Fac Ext Cet Arc Hub Res Qua Res Tes Total Allies 40 | . . . . . . 2 . . . . 17 . . 1 . . 20 . Largest Group 11 | . . . . . . 2 2 . . . 6 1 . 1 . . 11 8 Highest-Rated Group 230 | . . . . . . 78 78 . . . 230 159 . 10 . . 157 113 Highest-Rated Ally 159 | . . . . . . 49 49 . . . 159 159 . 10 . . 15 15 Initial UFD Resources 102 | . . . . . 48 62 62 62 66 66 76 82 82 82 85 99 102 102 Total Orders 4 | . . . . . . 2 . . . . 2 . . . . . . . STAY 1 | . . . . . . . . . . . 1 . . . . . . . FOLLOW 1 | . . . . . . . . . . . 1 . . . . . . . EXPLORE 1 | . . . . . . 1 . . . . . . . . . . . . RETURN 1 | . . . . . . 1 . . . . . . . . . . . . Ally Attacks 226 | . . . . . . . 28 . . . 102 8 . . . . 58 30 Total Damage 4806 | . . . . . . . 358 . . . 2705 430 . . . . 960 353 Kills 26 | . . . . . . . 2 . . . 17 3 . . . . 2 2 Allies Corrupted . | . . . . . . . . . . . . . . . . . . . Allies Melted . | . . . . . . . . . . . . . . . . . . . Intel | -11 -10 -10 -7 -7 -5 -5 -5 -5 -4 -4 -4 -4 -4 -4 -3 -3 -2 -2 ------- Run | Yrd Mat Sub Rec Scr Fac Upp Upp Zhi Pro Fac Ext Cet Arc Hub Res Qua Res Tes Active Infowar (turns) 15266 | . . . . . 2135 1273 463 400 894 1275 3251 552 154 557 531 2667 1114 . Terrain 72 | . . . . . . . . . . . . . . . . 47 25 . Decoding 2614 | . . . . . . . . . . . . . . . . 2614 . . Machine Analysis 15266 | . . . . . 2135 1273 463 400 894 1275 3251 552 154 557 531 2667 1114 . Robot Analysis Total 14 | . 1 . . 9 . . . 4 . . . . . . . . . . Derelict Logs Recovered 10 | . . 2 . 3 . 2 2 . 1 . . . . . . . . . Drone Launches 6 | . . . . . . 6 . . . . . . . . . . . . Drone Recoveries 6 | . . . . . . 6 . . . . . . . . . . . . Decoded 0b10 Intel 116 | . . . . . . . . . . . . . . . . 116 . . Items 116 | . . . . . . . . . . . . . . . . 116 . . Exploration | -11 -10 -10 -7 -7 -5 -5 -5 -5 -4 -4 -4 -4 -4 -4 -3 -3 -2 -2 ------------- Run | Yrd Mat Sub Rec Scr Fac Upp Upp Zhi Pro Fac Ext Cet Arc Hub Res Qua Res Tes Turns Passed 29326 | 5 1797 5228 1797 3563 2309 1273 463 400 894 1421 3403 552 154 557 531 2667 1566 746 Spaces Moved 11188 | 1 576 1975 640 1426 755 515 209 151 383 354 1295 239 61 236 226 1112 667 367 Core 207 | . . . . . 5 . . . . . . . . . . . 202 . Treads 8200 | 1 576 1975 640 1426 523 . . . 149 185 730 239 61 236 226 986 247 . Legs 2781 | . . . . . 227 515 209 151 234 169 565 . . . . 126 218 367 Wheels . | . . . . . . . . . . . . . . . . . . . Hover . | . . . . . . . . . . . . . . . . . . . Flight . | . . . . . . . . . . . . . . . . . . . Fastest Speed 50 | 160 160 240 240 240 160 190 190 190 190 190 190 160 160 160 160 120 50 120 Average Speed 214 | 160 205 245 241 246 247 192 191 237 218 217 219 174 160 160 172 169 166 140 Slowest Speed 2100 | 160 240 250 250 250 1850 260 260 260 260 330 330 240 160 160 240 330 2100 260 Overloaded Moves . | . . . . . . . . . . . . . . . . . . . Propulsion Burnouts . | . . . . . . . . . . . . . . . . . . . Robots Hopped 9 | . . . . . . . . . . . . 9 . . . . . . Potential Cave-ins 17 | . . . . . . . . . . . . . . . . 15 2 . Cave-ins Triggered 2 | . . . . . . . . . . . . 1 . . . 1 . . Teleports 2 | . . . . . . . . . . . . . . . . 1 1 . Exploration Rate (%) 52 | 2 80 92 92 78 18 81 43 60 63 9 98 48 67 31 7 81 24 32 Regions Visited 18 Branch Regions 13 Pre-discovered Areas 16 | . 1 2 7 1 1 1 . 3 . . . . . . . . . . Known Exits Taken 8 | . . . 1 1 1 . . . 1 1 . . 1 1 . . 1 . Unknown Exits Taken 10 | 1 1 1 . . . 1 1 1 . . 1 1 . . 1 1 . . Scrap Searched 11 | . . 7 . 2 . 1 1 . . . . . . . . . . . Spaces Dug 49 | . . . . . 13 . . . . . . . . 8 6 14 8 . Terrain Destroyed 1161 | . . 1 . . 36 48 5 . 85 62 12 22 13 25 65 746 38 3 Melee 8 | . . . . . . . . . . . . . . . . . 8 . Projectile 213 | . . 1 . . 34 19 5 . . 17 12 22 13 18 6 43 20 3 AOE 937 | . . . . . . 29 . . 85 45 . . . 7 59 702 10 . Terrain Rammed . | . . . . . . . . . . . . . . . . . . . Walls Destroyed . | . . . . . . . . . . . . . . . . . . . Machines Disabled . | . . . . . . . . . . . . . . . . . . . Actions | -11 -10 -10 -7 -7 -5 -5 -5 -5 -4 -4 -4 -4 -4 -4 -3 -3 -2 -2 --------- Run | Yrd Mat Sub Rec Scr Fac Upp Upp Zhi Pro Fac Ext Cet Arc Hub Res Qua Res Tes Total 14924 | 8 1137 2161 881 1476 990 706 248 179 425 905 1698 321 83 339 318 1569 951 529 Wait 2002 | . 518 46 219 25 28 107 16 . 2 454 145 17 . 59 36 132 117 81 Move 11151 | . 575 1974 639 1425 754 514 208 150 382 353 1294 220 60 235 225 1110 666 367 Hop 9 | . . . . . . . . . . . . 9 . . . . . . Pick Up 166 | . 8 13 2 11 22 6 4 2 9 11 15 6 3 2 11 23 16 2 Fast Attach 189 | . 6 2 1 2 18 1 2 6 . 10 17 12 1 3 4 62 22 20 Attach 120 | 2 . 3 . . 19 15 3 2 6 14 3 2 . 1 12 19 15 4 Detach 33 | . 1 . . . 2 5 . 4 1 1 1 7 . . . 7 1 3 Swap 58 | . 2 5 5 2 2 4 . 1 4 3 14 5 . 1 1 8 1 . Drop 188 | 6 2 8 7 11 8 3 . 1 8 10 29 19 3 3 2 46 16 6 Fire 850 | . 22 109 6 . 136 48 15 13 13 49 78 24 16 35 26 160 72 28 Melee 36 | . . . . . . . . . . . . . . . . . 24 12 Ram 1 | . . . . . . . . . . . . . . . . . 1 . Kick 6 | . . . . . . . . . . . . . . . . . . 6 Crush 9 | . 3 . 2 . 1 . . . . . 1 . . . 1 1 . . Escape Stasis 6 | . . . . . . . . . . . 5 . . . . 1 . . Rewire 99 | . . . . . . 3 . . . . 96 . . . . . . . Trap 1 | . . 1 . . . . . . . . . . . . . . . . Miscellaneous . | . . . . . . . . . . . . . . . . . . . Route ------- -11/Scrapyard -10/Materials (discovered 4 exits: *Mat x2 / [*Min] / *Sub) -10/Subcaves (discovered 3 exits: [*Mat x2] / *Rec) -7/Recycling (discovered 2 exits: *Fac / *Scr) -7/Scraptown -5/Factory (discovered 3 exits: Fac x2 / *Upp) -5/Upper Caves -5/Upper Caves -5/Zhirov -4/Proximity Caves -4/Factory (discovered 4 exits: Res / *Ext x2 / Arm) -4/Extension (discovered 2 exits: *Res / [*Cet]) -4/Cetus -4/Archives (discovered 3 exits: Res / *Hub x2) -4/Hub_04(d) -3/Research -3/Quarantine -2/Research (discovered 3 exits: [*Acc] / *Tes x2) -2/Testing History --------- Turn | Location | Event 6 | -11/Scrapyard | Discovered new exit (range 0) 6 | -11/Scrapyard | Entered Materials 303 | -10/Materials | Build established: Mutant 350 | -10/Materials | Discovered new exit (range 15) 445 | -10/Materials | Discovered new exit (range 10) 762 | -10/Materials | Discovered new exit (range 16) 829 | -10/Materials | Loaded intel: 2 recycling unit locations 899 | -10/Materials | Learned Storage security intel 960 | -10/Materials | Learned location of 1 exit from Recycling 1010 | -10/Materials | Learned location of 2 exits from Mines 1052 | -10/Materials | Learned location of Subcaves (-10) 1084 | -10/Materials | Learned 2 Storage zone layouts 1108 | -10/Materials | Identified exit to Materials 1143 | -10/Materials | Learned Storage trap positions 1308 | -10/Materials | Learned location of 1 exit from Recycling 1734 | -10/Materials | Discovered new exit (range 10) 1803 | -10/Materials | Entered Subcaves 1820 | -10/Subcaves | Shifting Twisted Machinery released Sub. Power Source 2016 | -10/Subcaves | Shifting Twisted Machinery released Mak. Light Armor Plating 2353 | -10/Subcaves | Visited Clippyterm 2361 | -10/Subcaves | Learned Factory trap positions 2361 | -10/Subcaves | Learned Research machine intel 2882 | -10/Subcaves | Discovered new exit (range 9) 3617 | -10/Subcaves | Disturbed a concealed Subdweller 4014 | -10/Subcaves | Discovered new exit (range 11) 4622 | -10/Subcaves | Visited 4L-MR0's lab 4649 | -10/Subcaves | Found Powered Cannon 4816 | -10/Subcaves | A swath of the cavern ceiling suddenly collapsed 5589 | -10/Subcaves | Core integrity fell below 50% 6047 | -10/Subcaves | Shifting Twisted Machinery released Battle Cannon 6049 | -10/Subcaves | Shifting Twisted Machinery released Battle Cannon 6284 | -10/Subcaves | Discovered new exit (range 5) 6285 | -10/Subcaves | Learned location of Zion (-6) 6285 | -10/Subcaves | Met a Zionite searching for "candidates" 6390 | -10/Subcaves | Learned location of Storage (-7) 6482 | -10/Subcaves | Learned Materials garrison access intel 7031 | -10/Subcaves | Entered Recycling 7032 | -7/Recycling | Identified exit to Scraptown 7032 | -7/Recycling | Identified exit to Factory 7622 | -7/Recycling | Build established: Scavenger-Mutant 8523 | -7/Recycling | Learned location of 2 exits from Archives 8556 | -7/Recycling | Scanned before Scraplab entrance 8569 | -7/Recycling | Learned location of Lower Caves (-6) 8592 | -7/Recycling | Entered Scraplab 8606 | -7/Recycling | Learned location of 3 exits from Factory 8632 | -7/Recycling | Learned Extension stockpile data 8648 | -7/Recycling | Learned Extension trap positions 8676 | -7/Recycling | Learned location of 2 exits from Lower Caves 8714 | -7/Recycling | Learned Extension emergency access door positions 8828 | -7/Recycling | Entered Scraptown 9121 | -7/Scraptown | Scanned Subdweller tech in exchange for log data 9128 | -7/Scraptown | Learned location of 1 exit from Lower Caves 9131 | -7/Scraptown | Learned location of Extension (-4) 9252 | -7/Scraptown | Visited UFD Registry 9252 | -7/Scraptown | Registered with UFD as "Roughdrive" 9455 | -7/Scraptown | Delivered Scrap Shield to a Scientist 10309 | -7/Scraptown | Build established: Mutant 10432 | -7/Scraptown | Visited Shadow of the Wyrm 10457 | -7/Scraptown | Visited CPS Storage 10537 | -7/Scraptown | Visited Junk Repository 10615 | -7/Scraptown | Visited CR-KLE's Repair Center 10640 | -7/Scraptown | Visited Spacefarers 10788 | -7/Scraptown | Visited Cyclists 10805 | -7/Scraptown | Entered Cyclist Reading Room 11035 | -7/Scraptown | Visited LU-1G1's Boring Crew 11070 | -7/Scraptown | Visited Observation Area 11105 | -7/Scraptown | Visited Scrapoid Research Area 11153 | -7/Scraptown | Visited Science Guys 11230 | -7/Scraptown | Visited Analyses Database 11308 | -7/Scraptown | Visited Infowarlord's Domain 11367 | -7/Scraptown | Visited Cartography Club 11516 | -7/Scraptown | Visited Scrap Suit Storage 11573 | -7/Scraptown | Visited Curators Association 11666 | -7/Scraptown | Visited Derelict Rescue Squad 11868 | -7/Scraptown | CR-KLE repaired 7 parts 12238 | -7/Scraptown | Met Optimus 12238 | -7/Scraptown | Accepted into 0bPrime 12378 | -7/Scraptown | Discovered exit to Factory (range 5) 12391 | -7/Scraptown | Entered Factory 12391 | -5/Factory | Evolved 10 slots: Power x1, Propulsion x2, Utility x6, Weapon x1 12392 | -5/Factory | Identified exit to Factory 12392 | -5/Factory | Identified exit to Upper Caves 12393 | -5/Factory | Loaded intel: 81 trap records 12826 | -5/Factory | Build established: Hacker-Tank 13392 | -5/Factory | Garrison activated, responded to threat 13555 | -5/Factory | Lost 3 parts (2n1w) 13940 | -5/Factory | Attached Powered Cannon, gained temporary slot: Power 14148 | -5/Factory | Loaded intel: 8 recycling unit locations 14211 | -5/Factory | Learned location of Protoforge (-2) 14304 | -5/Factory | Build established: Scavenger-Tank 14700 | -5/Factory | Entered Upper Caves 14702 | -5/Upper Caves | UFD Scientist delivered a prototype 14723 | -5/Upper Caves | Found Prototype Protection 14725 | -5/Upper Caves | Identified Enh. Scrap Shield 14744 | -5/Upper Caves | Learned Factory stockpile data 14903 | -5/Upper Caves | Attracted the attention of an 0b10 checkpoint 15003 | -5/Upper Caves | Core integrity fell below 50% 15040 | -5/Upper Caves | Learned location of Warlord (-4) 15415 | -5/Upper Caves | Attracted the attention of an 0b10 outpost 15493 | -5/Upper Caves | Lost 7 parts (1p1n2u3w) 15838 | -5/Upper Caves | Build established: Scavenger-Skirmisher 15954 | -5/Upper Caves | Discovered new exit (range 7) 15973 | -5/Upper Caves | Entered another Upper Caves area 15973 | -5/Upper Caves | Accompanied by 2 allies 16004 | -5/Upper Caves | Encountered a Warlord checkpoint 16115 | -5/Upper Caves | Spotted B-75 Beast 16130 | -5/Upper Caves | Allies destroyed B-75 Beast 16239 | -5/Upper Caves | Learned location of 2 exits from Factory 16243 | -5/Upper Caves | Learned location of 1 exit from Factory 16274 | -5/Upper Caves | Build established: Scavenger-Tank 16328 | -5/Upper Caves | Attracted the attention of an 0b10 checkpoint 16404 | -5/Upper Caves | Discovered new exit (range 15) 16436 | -5/Upper Caves | Entered Zhirov 16436 | -5/Zhirov | Discovered new exit (range 3) 16483 | -5/Zhirov | Met Zhirov 16533 | -5/Zhirov | Learned location of Testing (-2) 16548 | -5/Zhirov | Zhirov requested help retrieving the SGEMP Prototype 16587 | -5/Zhirov | Found Alien Artifact 16587 | -5/Zhirov | Identified Integrated Reactor 16587 | -5/Zhirov | Installed Integrated Reactor, increased core energy generation (+10) 16628 | -5/Zhirov | Found Alien Artifact 16836 | -5/Zhirov | Entered Proximity Caves 16838 | -4/Proximity Caves | Unaware initiated a cargo recovery operation 17235 | -4/Proximity Caves | Lost 4 parts (1n2u1w) 17668 | -4/Proximity Caves | Discovered exit to Factory (range 10) 17730 | -4/Proximity Caves | Entered Factory 17730 | -4/Factory | Evolved 2 slots: Utility x2 17731 | -4/Factory | Identified exit to Armory 17732 | -4/Factory | Identified exit to Research 17732 | -4/Factory | Identified exit to Extension 17773 | -4/Factory | Loaded intel: 8 recycling unit locations 18279 | -4/Factory | Lost 3 parts (2u1w) 18285 | -4/Factory | Destroyed 7 combat bots 18530 | -4/Factory | Build established: Scavenger-Skirmisher 18818 | -4/Factory | Garrison activated, responded to threat 18862 | -4/Factory | Lost 5 parts (2u3w) 18959 | -4/Factory | Lost 6 parts (1p2n2u1w) 19102 | -4/Factory | Lost 3 parts (1p1n1w) 19151 | -4/Factory | Entered Extension 19152 | -4/Extension | Loaded intel: 26 trap records 19163 | -4/Extension | Disrupted transfer network 19403 | -4/Extension | Loaded intel: 2 recycling unit locations 19640 | -4/Extension | Build established: Scavenger-Tank 19983 | -4/Extension | Rescued a captive Derelict 19984 | -4/Extension | Rescued a captive Derelict 20146 | -4/Extension | Rescued a captive Derelict 20148 | -4/Extension | Rescued a captive Derelict 20172 | -4/Extension | Rescued a captive Derelict 20404 | -4/Extension | Spotted B-86 Titan 20429 | -4/Extension | Spotted B-86 Titan 20433 | -4/Extension | Allies destroyed B-86 Titan 20454 | -4/Extension | Destroyed B-86 Titan 20481 | -4/Extension | Lost 3 allies 21529 | -4/Extension | Lost 5 allies 21553 | -4/Extension | Lost 3 parts (1n2u) 21703 | -4/Extension | Discovered exit to Research (range 10) 21706 | -4/Extension | Discovered new exit (range 6) 22241 | -4/Extension | Rescued A7 22554 | -4/Extension | Entered Cetus 22554 | -4/Cetus | Accompanied by 1 ally (A7) 22559 | -4/Cetus | Acquired a Cetus Manufacturing Module code from A7 22582 | -4/Cetus | Spotted Cetus Guard 22583 | -4/Cetus | Spotted Cetus Guard 22583 | -4/Cetus | Spotted Cetus Guard 22594 | -4/Cetus | Destroyed Cetus Guard 22598 | -4/Cetus | Allies destroyed Cetus Guard 22600 | -4/Cetus | Destroyed Cetus Guard 22601 | -4/Cetus | Spotted Cetus Guard 22612 | -4/Cetus | Allies destroyed Cetus Guard 22649 | -4/Cetus | System corruption reached 10% 22718 | -4/Cetus | Crushed by falling debris 22942 | -4/Cetus | Murdered A7 22947 | -4/Cetus | Extracted ID and sensor layout for unrecognized location from A7's data core 22963 | -4/Cetus | Found Prototype Protection 22963 | -4/Cetus | Identified Med. Regenerative Plating 23079 | -4/Cetus | Discovered new exit (range 15) 23106 | -4/Cetus | Entered Archives 23107 | -4/Archives | Identified exit to Hub_04(d) 23195 | -4/Archives | Discovered exit to Hub_04(d) (range 16) 23260 | -4/Archives | Entered Hub_04(d) 23738 | -4/Hub_04(d) | Spotted B-86 Titan 23800 | -4/Hub_04(d) | Garrison activated, responded to threat 23808 | -4/Hub_04(d) | Discovered exit to Research (range 7) 23817 | -4/Hub_04(d) | Core integrity fell below 50% 23817 | -4/Hub_04(d) | Entered Research 23817 | -3/Research | Evolved 2 slots: Utility x2 23818 | -3/Research | Loaded intel: 125 machine locations 23829 | -3/Research | Destroyed 8 combat bots 23834 | -3/Research | Lost 4 parts (1p2u1w) 23934 | -3/Research | Lost 9 parts (2p1n3u3w) 24104 | -3/Research | Loaded intel: 5 recycling unit locations 24338 | -3/Research | Discovered new exit (range 7) 24348 | -3/Research | Entered Quarantine 24355 | -3/Quarantine | Lost 6 parts (1n5u) 24477 | -3/Quarantine | Scanned by Researcher 24919 | -3/Quarantine | Lost 3 parts (1p2w) 24984 | -3/Quarantine | Found Alien Artifact 24984 | -3/Quarantine | Identified Core Reset Matrix 24984 | -3/Quarantine | Identified Transdimensional Reconstructor 24984 | -3/Quarantine | Used Core Reset Matrix 24988 | -3/Quarantine | Detected hypermatrix surge 24988 | -3/Quarantine | Sensed 14 artifacts in vicinity 24996 | -3/Quarantine | Met incapacitated Sigix Warrior 24996 | -3/Quarantine | Lockdown squad dispatched 25004 | -3/Quarantine | Acquired the access code to the Sigix quarantine chamber 25008 | -3/Quarantine | Unlocked Sigix quarantine chamber 25015 | -3/Quarantine | Found Sigix Containment Pod 25589 | -3/Quarantine | Discovered new exit (range 20) 25632 | -3/Quarantine | Found Matter Drive 25670 | -3/Quarantine | Build established: Hacker-Tank 25866 | -3/Quarantine | Found Prototype Hackware 25866 | -3/Quarantine | Identified Exp. Hacking Suite 26178 | -3/Quarantine | Found Prototype Device 26178 | -3/Quarantine | Identified Exp. Actuator Array 26382 | -3/Quarantine | Spotted Alpha 7 26399 | -3/Quarantine | Found Sigix Terminator 26425 | -3/Quarantine | Core integrity fell below 50% 26442 | -3/Quarantine | Destroyed Alpha 7 26467 | -3/Quarantine | Found Prototype Ballistic Gun 26475 | -3/Quarantine | Identified Multirail 26587 | -3/Quarantine | Spotted Lightning 26587 | -3/Quarantine | Spotted Lightning 26587 | -3/Quarantine | Spotted Lightning 26643 | -3/Quarantine | Destroyed Lightning 26667 | -3/Quarantine | Fired Sigix Terminator 26667 | -3/Quarantine | Destroyed Lightning 26667 | -3/Quarantine | Destroyed Lightning 26688 | -3/Quarantine | Destroyed 8 combat bots 26698 | -3/Quarantine | Lost 8 parts (2p3u3w) 26726 | -3/Quarantine | Found Hpw. Transdimensional Reconstructor 26759 | -3/Quarantine | Warped through subspace 26787 | -3/Quarantine | Lost 7 parts (2n2u3w) 26800 | -3/Quarantine | System corruption reached 10% 27006 | -3/Quarantine | Crushed by falling debris 27015 | -3/Quarantine | Entered Research 27015 | -2/Research | Evolved 2 slots: Propulsion x1, Utility x1 27040 | -2/Research | Lost 4 parts (1n2u1w) 27288 | -2/Research | Central database locked down 27349 | -2/Research | Lost 4 parts (1p2n1w) 27542 | -2/Research | Destroyed 7 combat bots 27665 | -2/Research | Identified exit to Testing 27787 | -2/Research | Lost 4 parts (1n1u2w) 27872 | -2/Research | Found Prototype Processor 27873 | -2/Research | Identified Exp. Core Analyzer 27995 | -2/Research | Build established: Hacker-Gunner 28044 | -2/Research | Lost 4 parts (2n1u1w) 28178 | -2/Research | Warped through subspace 28179 | -2/Research | Released all parts (3) 28199 | -2/Research | Lost 13 parts (3p7u3w) 28268 | -2/Research | System corruption reached 10% 28307 | -2/Research | Build established: Hacker-Mutant 28314 | -2/Research | Core integrity fell below 50% 28393 | -2/Research | Emitted hypermatrix ping 28398 | -2/Research | Assembled emerged from beneath the floor 28436 | -2/Research | Lost 5 allies 28458 | -2/Research | Assembled emerged from beneath the floor 28544 | -2/Research | Assembled emerged from beneath the floor 28581 | -2/Research | Discovered new exit (range 7) 28581 | -2/Research | Entered Testing 28581 | -2/Testing | Accompanied by 8 allies 28625 | -2/Testing | Found Prototype Ballistic Cannon 28625 | -2/Testing | Identified Omega Cannon 28639 | -2/Testing | Murdered 3 allies 28826 | -2/Testing | Lost 3 allies 28962 | -2/Testing | Core integrity fell below 20% 29327 | -2/Testing | Destroyed by G-73 Enforcer with Phase Gun Last Messages --------------- 29309_ P-80 Master destroyed. 29310_ Critical hit (Burn: +29). 29311_ P-80 Master resets G-73 Enforcer, system corruption cleaned. 29312_ K-01 Serf collects debris. 29312_ G-73 Enforcer knocked back. 29313_ P-80 Master resets G-73 Enforcer, system corruption cleaned. 29315_ K-01 Serf collects debris. 29315_ Imp. Utility Shielding destroyed. 29316_ Gamma Rifle destroyed. 29318_ Adv. Heat Sink destroyed. 29318_ K-01 Serf collects debris. 29319_ System corrupted: Component data lost. 29321_ Myomer Leg destroyed. 29321_ Kicked G-73 Enforcer. 29323_ Omega Cannon destroyed. 29323_ Kicked G-73 Enforcer. 29324_ Mic. Antimatter Reactor destroyed. 29325_ Kicked G-73 Enforcer. Map ----- +----------------------------------------------------+ | | | | | | | | | | | | | | | ?????????????????????????????????????????????????? | | ?????????????????????????????????????????????????? | | ?????????????????????????????????????????????????? | | ?????????????????????????????????????????????????? | | ?????????????????????????????????????????????????? | | ?????????????????????????????????????????????????? | | ?????????????????????????????????????????????????? | | ?????????????????????????????????????????????????? | | ?????????????????????????????????????????????????? | | ?????????????????????????????????????????????????? | | ?????????????????????????????????????????????????? | | ?????????????????????????????????????????????????? | | ?????????????????#####???????????????????????????? | | ????????????? ?? ??????????????????????????? | | ????????????? ??? ??????????????????????????? | | ????????????? ???? ?????????????????????????? | | ????????????? ???? ?????????????????????????? | | ????????????# ######/####?????????????????????? | | ????????????# # gg@ #?????????????????????? | | ????????????# # #?????????????????????? | | ????????????# # ###???????????????????? | | ????????????# # #???????????????????? | | ?????######## # #???????????????????? | | ????? # %! ] #???????????????????? | | ????? ## [g* g ###???????????????????? | | ??????# ""## =%gp #?????????????????????? | | ??????# "" ""######!#w###?????????????????????? | | ??????# "" G##%| %* #?????????????????????? | | ??????# """ ""##! *!u""" #?????????????????????? | | ??????# """ ""## %"" """ #?????????????????????? | | ??????# """ ##=""" """ #?????????????????????? | | ??????# "" *=/ [ #?????????????????????? | | ??????# #!!""" #?????????????????????? | | ??????# """ ## "" * #?????????????????????? | | ??????# """ ## #?????????????????????? | | ??????# """ #########+##?????????????????????? | | ??????# """ ######???????????????????????????? | | ###???# """ ???????????????????????????? | | ??# """ ??????????????????????????? | | ??# ####?????????????????????????????? | | ?# #????????????????????????????????? | | ?# #????????????????????????????????? | | # #????????????????????????????????? | +----------------------------------------------------+ Best States ------------- Heat Dissipation 105 Coolant Potential 120 Energy Generation 55 Energy Capacity 1065 Matter Stores 300 Matter Capacity 300 Sight Range 16 Terrain Scan Range 20 Terrain Scan Density 10 Additional Mass Support 9 Base Temperature (-) 200 Corruption Containment 8 Corruption Block 20 Armor Coverage 825 Resistance: KI 20 Resistance: TH 20 Resistance: EX 20 Resistance: EM 35 Resistance: I 20 Resistance: S 20 Resistance: P 20 Core Shielding 30 Power Shielding 66 Propulsion Shielding 90 Utility Shielding 66 Weapon Cycling 20 Phase Shifting 10 Evasion (%) 55 Targeting Accuracy 6 Melee Accuracy 6 Target Analysis 12 Core Analysis 8 Recoil Reduction 4 Matter Filtering 50 Kinecelleration 30 Salvage Targeting 4 Offensive Hacking 48 Defensive Hacking 26 Item Schematics ----------------- Proton Burst Cannon | -3/Quarantine | Archive Exp. Cloaking Device | -2/Testing | Archive Robot Schematics ------------------ R-10 Processor | -2/Testing | Archive Fabricated ------------ Nothing Repaired ---------- Nothing Studied --------- Flexi-carbon Leg | -2/Research | Hacked Enh. Hardcell Cannon | -2/Research | Hacked Adv. Heavy Treads | -2/Research | Hacked Lgt. Antimatter Reactor | -2/Research | Hacked Power Maul | -2/Research | Hacked Hvy. Shock Bomb Launcher | -2/Research | Hacked Tesla Rifle | -2/Research | Hacked Plasma Rifle | -2/Research | Hacked Alien Tech Used ----------------- Integrated Reactor Core Reset Matrix Sigix Terminator Transdimensional Reconstructor Matter Drive High-powered Transdimensional Reconstructor Achievements -------------- All Kinds Of Bad News Hulk Smash Tailor-made Thread The Needle Around The Corner Wiki Contributor Challenges ------------ None Game ------ Seed BombBattleBoomstick Manual? 0 Play Time 02:58:00 Cumulative 483.4 hours Start 2026.03.12 @ 15:18:14 End 2026.03.12 @ 18:52:51 Sessions 1 Manual Loads 0 Difficulty Adventurer Special Mode None Game No. 350 Rogue 63 Adventurer 261 Explorer 26 Win Type - Total 2 Types 2/0/0/0/0/0/0/0/0/0 Lore% 83 Gallery% 71 Achievement% 52 Wizard Run 0 Options --------- Layout 2 ASCII 0 Keyboard 0 Movement Mouse Keybinds 0 Fullscreen 0 Font 16/Cog Map View 64x51 Zoom Use 0% Tactical HUD 1 Map Filters NONE Filters BRIGHTNESS(115)|SATURATION(100)|LOW_CONTRAST(0,16,30) Steam 1 RUN: 0c5242d0-3adb-4fe8-880d-e69f83b9df1f